bitfinex/quotes_BTCUSD_20240815
["timestamp","ask_amount","ask_price","bid_price","bid_amount"]
[1723715096171,0.0064896,58560.0,58559.0,1.3361762]
[1723715096397,0.0024896,58560.0,58559.0,1.3361762]
[1723715096640,0.0024896,58560.0,58559.0,1.6777112]
[1723715096779,0.0044896,58560.0,58559.0,1.6777112]
[1723715097614,0.0024896,58560.0,58559.0,1.6777112]
[1723715098007,0.0024896,58560.0,58559.0,1.6827112]
[1723715101217,0.0024896,58560.0,58559.0,1.6929519]
[1723715102277,0.0024896,58560.0,58559.0,1.3514169]
[1723715102681,0.0024896,58560.0,58559.0,1.2770762]
[1723715103322,0.0004736,58567.0,58559.0,1.2770762]
[1723715103323,0.0004736,58567.0,58566.0,1.536727]
[1723715103527,0.0004736,58567.0,58566.0,1.90448654]
[1723715103731,0.0004736,58567.0,58566.0,2.25735096]
[1723715104349,0.0004736,58567.0,58566.0,2.59884596]
[1723715105367,0.0004736,58567.0,58566.0,2.61184596]
[1723715106768,0.0004736,58567.0,58566.0,2.62584596]
[1723715107532,0.0004736,58567.0,58566.0,2.61284596]
[1723715107864,0.0004736,58567.0,58566.0,2.62684596]
[1723715109489,0.0004736,58567.0,58566.0,2.62884596]
[1723715109661,0.0004736,58567.0,58566.0,2.62684596]
[1723715109866,0.0004736,58567.0,58566.0,2.62884596]
[1723715110062,0.0004736,58567.0,58566.0,2.62684596]
[1723715110515,0.0004736,58567.0,58566.0,2.62884596]
[1723715110879,0.0004736,58567.0,58566.0,2.63886473]
[1723715111452,0.0004736,58567.0,58566.0,2.63686473]
[1723715112513,0.0004736,58567.0,58566.0,2.29536973]
[1723715112908,0.0004736,58567.0,58566.0,1.71312019]
[1723715113061,0.0004736,58567.0,58566.0,1.62655077]
[1723715114451,0.0004736,58567.0,58566.0,1.616532]
[1723715114810,0.0012966,58567.0,58566.0,1.616532]
[1723715115760,0.0012966,58567.0,58566.0,1.62434642]
[1723715117110,0.0012966,58567.0,58566.0,2.04894142]
[1723715117519,0.0012966,58567.0,58566.0,2.10894142]
[1723715117966,0.0012966,58567.0,58566.0,2.28049596]
[1723715125689,0.0002,58571.0,58570.0,1.677119]
[1723715125895,0.0002,58571.0,58570.0,1.84867354]
[1723715126122,0.0002,58571.0,58570.0,1.79478394]
[1723715127248,0.0002,58571.0,58570.0,1.80578394]
[1723715127451,0.0002,58571.0,58570.0,1.81878394]
[1723715130979,0.0002,58571.0,58570.0,1.5684294]
[1723715132273,0.0002,58571.0,58570.0,1.57875913]
[1723715132680,0.0002,58571.0,58570.0,1.65765913]
[1723715137224,0.0002,58571.0,58570.0,1.82921367]
[1723715137891,0.0002,58571.0,58570.0,1.94611367]
[1723715139930,0.0002,58571.0,58570.0,2.12151367]
[1723715140741,0.001023,58571.0,58570.0,2.12151367]
[1723715141876,0.001023,58571.0,58570.0,2.04261367]
[1723715143628,0.001023,58571.0,58570.0,1.87105913]
[1723715146047,0.001023,58571.0,58570.0,1.52958813]
[1723715146296,0.001023,58571.0,58570.0,1.1777874]
[1723715146540,0.001023,58571.0,58570.0,1.5192584]
[1723715148027,0.001023,58571.0,58570.0,1.6562584]
[1723715148240,0.001023,58571.0,58570.0,1.82781294]
[1723715150224,0.001023,58571.0,58570.0,2.16928394]
[1723715150439,0.001023,58571.0,58570.0,1.82781294]
[1723715150850,0.001023,58571.0,58570.0,2.34648263]
[1723715152336,0.001023,58571.0,58570.0,2.33548263]
[1723715152759,0.001023,58571.0,58570.0,2.17028394]
[1723715153031,0.001023,58571.0,58570.0,2.34748253]
[1723715153245,0.001023,58571.0,58570.0,1.5202584]
[1723715153480,0.082723,58571.0,58570.0,1.5072584]
[1723715153673,0.001023,58571.0,58570.0,1.5072584]
[1723715153883,0.001023,58571.0,58570.0,1.5212584]
[1723715157539,0.001023,58571.0,58570.0,1.83261294]
[1723715159103,0.001023,58571.0,58570.0,2.17408394]
[1723715160469,0.0064864,58578.0,58577.0,1.195005]
[1723715160670,0.0064864,58578.0,58577.0,2.08691188]
[1723715161052,0.0064864,58578.0,58577.0,2.42834188]
[1723715161707,0.0064864,58578.0,58577.0,2.25116655]
[1723715162474,0.0064864,58578.0,58577.0,2.2652172]
[1723715162694,0.0064864,58578.0,58577.0,2.2752172]
[1723715163083,0.0064864,58578.0,58577.0,2.2712172]
[1723715163746,0.0064864,58578.0,58577.0,2.2792172]
[1723715164210,0.00020622,58582.0,58581.0,0.170703]
[1723715164427,0.00020622,58582.0,58581.0,1.11310094]
[1723715164625,0.00020622,58582.0,58581.0,2.23732194]
[1723715165528,0.00020622,58582.0,58581.0,2.42847696]
[1723715165727,0.00020622,58582.0,58581.0,2.25132194]
[1723715166129,0.00020622,58582.0,58581.0,2.26532194]
[1723715166549,0.00020622,58582.0,58581.0,2.25132194]
[1723715167078,0.00020622,58582.0,58581.0,2.26532194]
[1723715167893,0.00020622,58582.0,58581.0,2.25132194]
[1723715168293,0.00020622,58582.0,58581.0,2.26532194]
[1723715168513,0.00020622,58582.0,58581.0,2.23732194]
[1723715168905,0.00020622,58582.0,58581.0,2.26532194]
[1723715169125,0.001,58593.0,58592.0,1.1947]
[1723715169350,0.001,58593.0,58592.0,1.6334]
[1723715169551,0.001,58593.0,58592.0,2.25399759]
[1723715169826,0.13979247,58605.0,58592.0,2.25399759]
[1723715169827,1.1169625,58600.0,58599.0,0.462951]
[1723715170050,1.1921625,58600.0,58599.0,1.145555]
[1723715170233,1.2552625,58600.0,58599.0,1.15696848]
[1723715171368,1.2552625,58600.0,58599.0,1.145555]
[1723715171726,1.1169625,58600.0,58599.0,1.227155]
[1723715172086,1.1169625,58600.0,58599.0,1.568457]
[1723715172291,1.1036256,58600.0,58599.0,1.569457]
[1723715173025,1.1036256,58600.0,58599.0,1.568457]
[1723715174335,1.1036256,58600.0,58599.0,1.486857]
[1723715174524,1.1036256,58600.0,58599.0,1.490857]
[1723715175492,1.1036256,58600.0,58599.0,1.493857]
[1723715175688,1.1036256,58600.0,58599.0,1.637257]
[1723715176307,1.1036256,58600.0,58599.0,2.25011354]
[1723715176507,1.1036256,58600.0,58599.0,2.24711354]
[1723715176998,1.1036256,58600.0,58599.0,2.25011354]
[1723715177201,0.0133369,58607.0,58599.0,2.25011354]
[1723715177202,0.0133369,58607.0,58606.0,1.194413]
[1723715177386,0.0133369,58607.0,58606.0,1.927974]
[1723715178221,0.0133369,58607.0,58606.0,1.635674]
[1723715178465,0.0133369,58607.0,58606.0,1.638674]
[1723715178790,0.0133369,58607.0,58606.0,1.635674]
[1723715179181,0.0133369,58607.0,58606.0,1.729874]
[1723715179358,0.0133369,58607.0,58606.0,2.19972854]
[1723715179597,0.0133369,58607.0,58606.0,2.18772854]
[1723715180007,0.0133369,58607.0,58606.0,2.18172854]
[1723715180211,1e-07,58610.0,58606.0,0.57185454]
[1723715180434,1e-07,58610.0,58609.0,2.365586]
[1723715180652,1e-07,58610.0,58609.0,1.95465254]
[1723715181698,1e-07,58610.0,58609.0,2.29589654]
[1723715182017,1e-07,58610.0,58609.0,1.95465254]
[1723715182221,1e-07,58610.0,58609.0,1.96865254]
[1723715182427,1e-07,58610.0,58609.0,1.95465254]
[1723715182986,1e-07,58610.0,58609.0,1.96865254]
[1723715183232,1e-07,58610.0,58609.0,1.95465254]
[1723715183509,1e-07,58610.0,58609.0,1.96865254]
[1723715184048,1e-07,58610.0,58609.0,1.98265254]
[1723715184642,1e-07,58610.0,58609.0,0.525866]
[1723715184843,0.0755001,58610.0,58609.0,0.525866]
[1723715185047,0.0755001,58610.0,58609.0,0.184622]
[1723715185250,0.0755001,58610.0,58609.0,0.539866]
[1723715185709,0.170622,58609.0,58604.0,0.341273]
[1723715185918,0.170622,58609.0,58602.0,0.341283]
[1723715185919,0.0755,58607.0,58605.0,0.170633]
[1723715186424,0.0755,58607.0,58603.0,0.341276]
[1723715186425,0.0755,58607.0,58603.0,0.341278]
[1723715186626,0.0755,58607.0,58605.0,0.170632]
[1723715186826,0.25275454,58606.0,58595.0,0.341322]
[1723715187022,0.1422,58604.0,58598.0,0.341305]
[1723715187239,0.1422,58604.0,58601.0,0.170643]
[1723715187440,0.312838,58604.0,58600.0,0.170647]
[1723715187644,0.17064,58603.0,58599.0,0.17065]
[1723715187877,0.1422,58604.0,58593.0,0.341336]
[1723715188084,0.1422,58604.0,58600.0,0.170646]
[1723715188280,0.312838,58604.0,58600.0,0.170646]
[1723715188504,0.1422,58604.0,58600.0,0.170646]
[1723715188712,0.1422,58604.0,58588.0,0.35135456]
[1723715188932,0.1422,58604.0,58603.0,0.170639]
[1723715189137,0.1652,58604.0,58603.0,0.170639]
[1723715189479,0.1652,58604.0,58603.0,0.511918]
[1723715190179,0.1662,58604.0,58603.0,0.170639]
[1723715190480,0.166023,58604.0,58603.0,0.511918]
[1723715190924,0.167023,58604.0,58603.0,0.511918]
[1723715191546,0.144023,58604.0,58603.0,0.853197]
[1723715193703,0.144023,58604.0,58603.0,1.194476]
[1723715193704,0.062823,58604.0,58603.0,1.194476]
[1723715193891,0.062823,58604.0,58603.0,0.853197]
[1723715198640,0.061123,58604.0,58603.0,0.853197]
[1723715198838,0.001823,58604.0,58603.0,0.853197]
[1723715199689,0.001823,58604.0,58603.0,0.972609]
[1723715199905,0.000823,58604.0,58603.0,0.972609]
[1723715200732,1e-07,58610.0,58609.0,1.909198]
[1723715200938,1e-07,58610.0,58609.0,2.18075254]
[1723715202309,1e-07,58610.0,58609.0,2.24705254]
[1723715202520,1e-07,58610.0,58609.0,2.58829654]
[1723715202856,1e-07,58610.0,58609.0,2.24705254]
[1723715203536,1e-07,58610.0,58609.0,2.27139062]
[1723715203984,1e-07,58610.0,58609.0,2.61263462]
[1723715204169,1e-07,58610.0,58609.0,2.27139062]
[1723715204925,1e-07,58610.0,58609.0,2.25739062]
[1723715205130,1e-07,58610.0,58609.0,2.61263462]
[1723715205328,1e-07,58610.0,58609.0,2.28539062]
[1723715205755,0.0008231,58610.0,58609.0,2.62663462]
[1723715206726,0.00022755,58610.0,58609.0,2.62863462]
[1723715208757,5.5e-07,58610.0,58609.0,2.62863462]
[1723715209898,5.5e-07,58610.0,58609.0,2.62663462]
[1723715210105,5.5e-07,58610.0,58609.0,2.28539062]
[1723715210301,0.06210055,58610.0,58609.0,0.539866]
[1723715210677,0.06210055,58610.0,58609.0,0.198622]
[1723715211015,0.06210055,58610.0,58609.0,0.539866]
[1723715211225,0.06210055,58610.0,58609.0,0.88111]
[1723715211445,0.06210055,58610.0,58609.0,0.86711]
[1723715211793,0.06210055,58610.0,58609.0,0.86611]
[1723715212011,0.06210055,58610.0,58609.0,1.207354]
[1723715212154,5.5e-07,58610.0,58609.0,1.208354]
[1723715212560,5.5e-07,58610.0,58609.0,1.194354]
[1723715212970,5.5e-07,58610.0,58609.0,1.196354]
[1723715213390,5.5e-07,58610.0,58609.0,1.198354]
[1723715214192,5.5e-07,58610.0,58609.0,1.196354]
[1723715214591,5.5e-07,58610.0,58609.0,1.199354]
[1723715214801,5.5e-07,58610.0,58609.0,0.85811]
[1723715215007,5.5e-07,58610.0,58609.0,0.516866]
[1723715215896,5.5e-07,58610.0,58609.0,0.85511]
[1723715216038,5.5e-07,58610.0,58609.0,0.85311]
[1723715216647,5.5e-07,58610.0,58609.0,1.194354]
[1723715218767,0.00100055,58610.0,58609.0,1.1952593]
[1723715218991,5.5e-07,58610.0,58609.0,1.1992593]
[1723715219373,5.5e-07,58610.0,58609.0,0.8630153]
[1723715220489,0.07870055,58610.0,58609.0,0.8630153]
[1723715220624,0.07870055,58610.0,58609.0,0.5217713]
[1723715220848,0.07870055,58610.0,58609.0,0.5177713]
[1723715221234,0.07870055,58610.0,58609.0,0.5167713]
[1723715221686,0.07870055,58610.0,58609.0,0.8630153]
[1723715221892,5.5e-07,58610.0,58609.0,0.8590153]
[1723715222042,5.5e-07,58610.0,58609.0,0.5137713]
[1723715222245,5.5e-07,58610.0,58609.0,0.1745273]
[1723715222446,0.07870055,58610.0,58609.0,0.0039053]
[1723715222652,0.07870055,58610.0,58609.0,0.0019053]
[1723715222897,0.07870055,58610.0,58609.0,0.0009053]
[1723715223130,0.14690055,58610.0,58609.0,0.0009053]
[1723715223391,0.68175755,58610.0,58609.0,0.0009053]
[1723715223767,0.34051955,58610.0,58609.0,0.0009053]
[1723715224377,0.68175755,58610.0,58609.0,0.0009053]
[1723715224506,1.19455009,58610.0,58609.0,0.0009053]
[1723715224708,1.53578809,58610.0,58609.0,0.0009053]
[1723715225126,1.58479616,58610.0,58609.0,0.0009053]
[1723715225302,1.53378809,58610.0,58609.0,0.0009053]
[1723715225506,1.53478809,58610.0,58609.0,0.0009053]
[1723715225707,1.32427949,58610.0,58609.0,0.0009053]
[1723715225923,1.19255009,58610.0,58609.0,0.0009053]
[1723715226110,0.85331209,58610.0,58609.0,0.0009053]
[1723715226339,0.14690055,58610.0,58609.0,0.0009053]
[1723715226512,0.14490055,58610.0,58609.0,0.0009053]
[1723715226940,0.14690055,58610.0,58609.0,0.0009053]
[1723715227803,0.00200055,58610.0,58609.0,0.8540153]
[1723715228552,5.5e-07,58610.0,58609.0,0.8540153]
[1723715228985,5.5e-07,58610.0,58609.0,0.8560153]
[1723715229366,5.5e-07,58610.0,58609.0,0.5127713]
[1723715229576,5.5e-07,58610.0,58609.0,0.1715273]
[1723715229792,5.5e-07,58610.0,58609.0,0.5127713]
[1723715230600,5.5e-07,58610.0,58609.0,0.8540153]
[1723715230804,5.5e-07,58610.0,58609.0,1.1952593]
[1723715232062,0.00100055,58610.0,58609.0,1.1952593]
[1723715232217,5.5e-07,58610.0,58609.0,1.1952593]
[1723715232628,5.5e-07,58610.0,58609.0,1.2002593]
[1723715233026,5.5e-07,58610.0,58609.0,0.8540153]
[1723715233225,5.5e-07,58610.0,58609.0,0.8580153]
[1723715233652,5.5e-07,58610.0,58609.0,0.8570153]
[1723715234034,5.5e-07,58610.0,58609.0,0.8540153]
[1723715234521,5.5e-07,58610.0,58609.0,0.5157713]
[1723715235108,5.5e-07,58610.0,58609.0,0.8620153]
[1723715235305,5.5e-07,58610.0,58609.0,1.1982593]
[1723715235696,5.5e-07,58610.0,58609.0,0.8540153]
[1723715236694,5.5e-07,58610.0,58609.0,0.8550153]
[1723715237280,5.5e-07,58610.0,58609.0,0.8540153]
[1723715237487,5.5e-07,58610.0,58609.0,0.8560153]
[1723715237685,5.5e-07,58610.0,58609.0,0.8580153]
[1723715238816,5.5e-07,58610.0,58609.0,0.8560153]
[1723715239023,0.3178,58617.0,58609.0,0.8560153]
[1723715239024,0.02822259,58617.0,58614.0,0.170607]
[1723715239235,0.023,58616.0,58614.0,0.170607]
[1723715239637,0.023,58616.0,58609.0,0.0059053]
[1723715239840,0.170605,58615.0,58611.0,0.170615]
[1723715240195,0.023,58616.0,58613.0,0.170608]
[1723715240403,0.193601,58616.0,58612.0,0.170612]
[1723715240538,0.023,58616.0,58612.0,0.170611]
[1723715240740,0.193602,58616.0,58612.0,0.170611]
[1723715241525,0.36515654,58616.0,58610.0,0.341237]
[1723715241653,0.170605,58615.0,58610.0,0.341237]
[1723715242000,0.0427,58614.0,58611.0,0.170615]
[1723715242335,0.0427,58614.0,58609.0,0.0009053]
[1723715242617,0.17061,58613.0,58610.0,0.170618]
[1723715242800,0.213307,58614.0,58610.0,0.170618]
[1723715243047,0.0427,58614.0,58609.0,0.0009053]
[1723715243195,0.170619,58611.0,58609.0,0.0009053]
[1723715243399,0.170618,58611.0,58609.0,0.0009053]
[1723715243650,0.341226,58613.0,58609.0,0.0009053]
[1723715243825,1.13154954,58610.0,58609.0,0.0009053]
[1723715244216,1.57238885,58610.0,58609.0,0.0009053]
[1723715245212,1.23115085,58610.0,58609.0,0.0009053]
[1723715245625,1.23115085,58610.0,58609.0,0.0029053]
[1723715245832,1.57238885,58610.0,58609.0,0.0009053]
[1723715246264,1.57538885,58610.0,58609.0,0.0009053]
[1723715246459,1.74415401,58610.0,58609.0,0.0009053]
[1723715246785,2.13091443,58610.0,58609.0,0.0009053]
[1723715246986,1.62091127,58610.0,58609.0,0.0009053]
[1723715247197,0.47507354,58610.0,58609.0,0.0009053]
[1723715247343,1.23414613,58610.0,58609.0,0.0009053]
[1723715247556,1.15754954,58610.0,58609.0,0.0009053]
[1723715247759,1.23413795,58610.0,58609.0,0.0009053]
[1723715248164,1.74692157,58610.0,58609.0,0.0009053]
[1723715248356,2.031629,58610.0,58609.0,0.0009053]
[1723715248556,2.13376408,58610.0,58609.0,0.0009053]
[1723715248779,1.51883646,58610.0,58609.0,0.0009053]
[1723715249005,1.62079931,58610.0,58609.0,0.0009053]
[1723715249207,1.98759706,58610.0,58609.0,0.0009053]
[1723715250770,1.64635906,58610.0,58609.0,0.0009053]
[1723715252210,1.51849021,58610.0,58609.0,0.0009053]
[1723715252409,1.64549322,58610.0,58609.0,0.0009053]
[1723715254823,1.64549322,58610.0,58609.0,0.00085055]
[1723715255416,1.51787266,58610.0,58609.0,0.00085055]
[1723715255825,1.51869566,58610.0,58609.0,0.00085055]
[1723715257020,1.85993366,58610.0,58609.0,0.00085055]
[1723715259254,1.85993366,58610.0,58609.0,0.00185055]
[1723715259684,1.85693366,58610.0,58609.0,0.00185055]
[1723715259883,1.85693366,58610.0,58609.0,0.00285055]
[1723715260111,1.85993366,58610.0,58609.0,0.00185055]
[1723715260311,1.85693366,58610.0,58609.0,0.00085055]
[1723715260519,2.00122617,58610.0,58609.0,0.00085055]
[1723715260854,2.10122617,58610.0,58609.0,0.00085055]
[1723715261178,2.10362448,58610.0,58609.0,0.00085055]
[1723715261418,2.11162448,58610.0,58609.0,0.00185055]
[1723715261637,2.11962448,58610.0,58609.0,0.00285055]
[1723715261834,2.11162448,58610.0,58609.0,0.00185055]
[1723715262120,2.10362448,58610.0,58609.0,0.00085055]
[1723715262325,2.12362448,58610.0,58609.0,0.00285055]
[1723715262525,2.27683622,58610.0,58609.0,0.002]
[1723715263568,2.72029402,58610.0,58609.0,0.002]
[1723715263772,2.91832028,58610.0,58609.0,0.002]
[1723715264005,1.302055,58604.0,58603.0,0.0009053]
[1723715264219,2.64631447,58604.0,58603.0,0.0009053]
[1723715264625,2.93725605,58604.0,58603.0,0.0009053]
[1723715265038,3.38852905,58604.0,58603.0,0.0009053]
[1723715265239,3.04725605,58604.0,58603.0,0.0009053]
[1723715265440,3.20881059,58604.0,58603.0,0.0009053]
[1723715265877,3.20881059,58604.0,58603.0,0.0019053]
[1723715265878,3.22281059,58604.0,58603.0,0.0019053]
[1723715266302,3.20881059,58604.0,58603.0,0.0009053]
[1723715266526,3.20881059,58604.0,58603.0,0.0019053]
[1723715266700,3.23581059,58604.0,58603.0,0.0029053]
[1723715267894,3.24619831,58604.0,58603.0,0.0029053]
[1723715269744,3.61747131,58604.0,58603.0,0.0029053]
[1723715269924,3.60694777,58604.0,58603.0,0.0029053]
[1723715270601,3.36119824,58604.0,58603.0,0.0029053]
[1723715271811,3.33419824,58604.0,58603.0,0.0009053]
[1723715272037,1.638989,58594.0,58582.0,0.0774]
[1723715272252,2.84807253,58594.0,58579.0,0.0813]
[1723715272467,2.74616435,58594.0,58579.0,0.0813]
[1723715272688,3.08749535,58594.0,58579.0,0.0813]
[1723715272864,3.08749535,58594.0,58572.0,0.08577727]
[1723715273075,3.08749535,58594.0,58575.0,0.0821]
[1723715273299,3.54428498,58594.0,58575.0,0.0821]
[1723715273517,3.62487203,58594.0,58593.0,0.0019053]
[1723715273998,3.62487203,58594.0,58572.0,0.0821]
[1723715273999,0.85362,58574.0,58572.0,0.0821]
[1723715274192,1.04817454,58574.0,58572.0,0.0821]
[1723715274488,0.70672654,58574.0,58572.0,0.0821]
[1723715275637,0.71172654,58574.0,58572.0,0.0821]
[1723715276538,1.04817454,58574.0,58569.0,0.0821]
[1723715276740,1.05517454,58574.0,58569.0,0.0821]
[1723715277367,1.05517454,58574.0,58567.0,0.0009053]
[1723715277368,1.58914737,58574.0,58567.0,0.0009053]
[1723715277579,0.170741,58568.0,58567.0,0.0009053]
[1723715277744,0.70677854,58568.0,58567.0,0.0009053]
[1723715277885,1.04826154,58568.0,58567.0,0.0009053]
[1723715278086,1.21646579,58568.0,58567.0,0.0009053]
[1723715279162,1.55994879,58568.0,58567.0,0.0009053]
[1723715279364,2.89954879,58568.0,58567.0,0.0009053]
[1723715279584,2.94224879,58568.0,58567.0,0.0009053]
[1723715279744,3.38373179,58568.0,58567.0,0.0009053]
[1723715280119,3.44489814,58568.0,58567.0,0.0009053]
[1723715280322,3.45489814,58568.0,58567.0,0.0009053]
[1723715280716,3.48832953,58568.0,58567.0,0.0009053]
[1723715281121,3.85870975,58568.0,58567.0,0.0009053]
[1723715281318,3.84870975,58568.0,58567.0,0.0009053]
[1723715281742,3.37333535,58568.0,58567.0,0.0009053]
[1723715282134,2.7695481,58568.0,58567.0,0.0009053]
[1723715282463,2.75924454,58568.0,58567.0,0.0009053]
[1723715282663,2.77324454,58568.0,58567.0,0.0009053]
[1723715283296,2.79624454,58568.0,58567.0,0.0009053]
[1723715283454,2.96779908,58568.0,58567.0,0.0009053]
[1723715284264,2.35476154,58568.0,58567.0,0.0009053]
[1723715284491,2.35476154,58568.0,58567.0,0.0824053]
[1723715284866,2.69624454,58568.0,58567.0,0.0009053]
[1723715285290,2.75764454,58568.0,58567.0,0.0009053]
[1723715286791,2.69624454,58568.0,58567.0,0.0009053]
[1723715286995,2.86779908,58568.0,58567.0,0.0009053]
[1723715288907,2.01327854,58568.0,58567.0,0.0634053]
[1723715289130,2.01327854,58568.0,58567.0,0.1418053]
[1723715291273,2.35476154,58568.0,58567.0,0.1418053]
[1723715291473,1.07626154,58568.0,58567.0,0.1418053]
[1723715291814,1.41774454,58568.0,58567.0,0.0009053]
[1723715292030,1.58929908,58568.0,58567.0,0.0009053]
[1723715292236,0.170762,58561.0,58560.0,0.0009053]
[1723715292507,0.170765,58560.0,58559.0,1e-08]
[1723715292644,1.15385681,58560.0,58559.0,1e-08]
[1723715292839,1.48990954,58560.0,58559.0,1e-08]
[1723715293049,1.66146408,58560.0,58559.0,1e-08]
[1723715293260,0.70684954,58560.0,58559.0,0.07750001]
[1723715293469,0.70684954,58560.0,58559.0,0.13760001]
[1723715294065,0.70684954,58560.0,58559.0,0.30836701]
[1723715294066,0.007,58560.0,58559.0,0.30836701]
[1723715294302,0.34931954,58560.0,58559.0,0.13760001]
[1723715295033,0.20155454,58560.0,58559.0,0.13760001]
[1723715295637,0.20855454,58560.0,58559.0,0.13760001]
[1723715296839,0.20855454,58560.0,58559.0,0.30836701]
[1723715297039,0.20855454,58560.0,58559.0,0.13760001]
[1723715298783,0.230993,58560.0,58559.0,0.13760001]
[1723715299208,0.20855454,58560.0,58559.0,0.13760001]
[1723715299804,0.37931954,58560.0,58559.0,0.13760001]
[1723715300009,0.20855454,58560.0,58559.0,0.13760001]
[1723715300147,0.20855454,58560.0,58559.0,0.30836701]
[1723715300494,0.014,58560.0,58559.0,0.99143701]
[1723715304527,0.014824,58560.0,58559.0,0.99143701]
[1723715310206,0.014824,58560.0,58559.0,1.33297201]
[1723715312697,0.007824,58560.0,58559.0,1.33297201]
[1723715313537,0.007824,58560.0,58559.0,1.33397201]
[1723715314107,0.007824,58560.0,58559.0,1.34165642]
[1723715315477,0.007824,58560.0,58559.0,0.65858642]
[1723715316259,0.007824,58560.0,58559.0,0.65758642]
[1723715316260,0.000824,58560.0,58559.0,0.65758642]
[1723715316742,0.004824,58560.0,58559.0,0.65758642]
[1723715316968,0.004824,58560.0,58559.0,0.99912142]
[1723715316969,0.002824,58560.0,58559.0,0.99912142]
[1723715317580,0.004824,58560.0,58559.0,0.99912142]
[1723715320403,0.37014354,58560.0,58559.0,0.00768442]
[1723715320784,0.41317789,58560.0,58559.0,0.00768442]
[1723715321004,0.75470789,58560.0,58559.0,0.00768442]
[1723715321549,0.37014354,58560.0,58559.0,0.00768442]
[1723715322488,0.83967386,58560.0,58559.0,0.00768442]
[1723715322824,1.0463502,58560.0,58559.0,0.00768442]
[1723715322966,1.0463502,58560.0,58559.0,1e-08]
[1723715324036,0.7048202,58560.0,58559.0,1e-08]
[1723715324710,0.53437959,58560.0,58559.0,1e-08]
[1723715324871,0.70514459,58560.0,58559.0,1e-08]
[1723715325074,0.53437959,58560.0,58559.0,0.07910001]
[1723715325241,0.66242456,58560.0,58559.0,0.08700119]
[1723715326256,0.53437959,58560.0,58559.0,0.08700119]
[1723715326597,0.70514459,58560.0,58559.0,0.08700119]
[1723715327581,1.20025567,58560.0,58559.0,0.00790119]
[1723715327795,1.38760246,58560.0,58559.0,0.00790119]
[1723715328010,1.80014119,58560.0,58559.0,1e-08]
[1723715328657,2.24907119,58560.0,58559.0,1e-08]
[1723715328869,0.96134,58552.0,58551.0,0.0009042]
[1723715329062,1.93423346,58552.0,58551.0,0.0009042]
[1723715329241,2.00394087,58552.0,58551.0,0.0009042]
[1723715329435,2.4164796,58552.0,58551.0,0.0009042]
[1723715329657,2.36977219,58552.0,58551.0,0.0009042]
[1723715330817,1.57295746,58552.0,58551.0,0.0009042]
[1723715331339,1.58395746,58552.0,58551.0,0.0009042]
[1723715331542,1.51925746,58552.0,58551.0,0.0009042]
[1723715331739,1.06631746,58552.0,58551.0,0.0009042]
[1723715331942,0.55395346,58552.0,58551.0,0.0009042]
[1723715332136,0.53995346,58552.0,58551.0,0.0009042]
[1723715332330,0.53995346,58552.0,58551.0,0.00894277]
[1723715332555,0.66787028,58552.0,58551.0,0.00894277]
[1723715332757,0.75881969,58552.0,58551.0,0.00894277]
[1723715332915,0.88673681,58552.0,58551.0,0.00894277]
[1723715333127,0.72994881,58552.0,58551.0,0.00894277]
[1723715333446,0.74394881,58552.0,58551.0,0.00894277]
[1723715333660,0.72475408,58552.0,58551.0,0.00894277]
[1723715333832,0.71075408,58552.0,58551.0,0.0009042]
[1723715334029,0.60484415,58552.0,58551.0,0.00894277]
[1723715334775,0.54576592,58552.0,58551.0,0.09164277]
[1723715334996,0.6480793,58552.0,58551.0,0.09164277]
[1723715335159,0.8188673,58552.0,58551.0,0.09164277]
[1723715335961,0.6480793,58552.0,58551.0,0.26243377]
[1723715336184,0.6480793,58552.0,58551.0,0.09164277]
[1723715337213,0.8188673,58552.0,58551.0,0.09164277]
[1723715337761,0.71655392,58552.0,58551.0,0.09164277]
[1723715338042,0.97243906,58552.0,58551.0,0.00894277]
[1723715338180,1.31401506,58552.0,58551.0,0.00894277]
[1723715338385,1.68116793,58552.0,58551.0,0.00894277]
[1723715338579,1.33959193,58552.0,58551.0,0.00894277]
[1723715338838,1.21170762,58552.0,58551.0,0.0009042]
[1723715339125,1.33958957,58552.0,58551.0,0.0009042]
[1723715339750,1.21170762,58552.0,58551.0,0.0009042]
[1723715340062,2.02274157,58552.0,58551.0,0.0009042]
[1723715340199,1.89485962,58552.0,58551.0,0.0009042]
[1723715340803,1.93755962,58552.0,58551.0,0.0009042]
[1723715341030,2.88602953,58552.0,58551.0,0.0009042]
[1723715341239,3.21198945,58552.0,58551.0,0.0009042]
[1723715341429,3.35441682,58552.0,58551.0,0.0009042]
[1723715341630,3.60778638,58552.0,58551.0,0.0009042]
[1723715341830,3.62178638,58552.0,58551.0,0.0009042]
[1723715342223,3.60778638,58552.0,58551.0,0.0009042]
[1723715342693,3.62178638,58552.0,58551.0,0.0009042]
[1723715342830,3.45802739,58552.0,58551.0,0.0009042]
[1723715343035,3.47202739,58552.0,58551.0,0.0009042]
[1723715343353,3.63541617,58552.0,58551.0,0.0009042]
[1723715343574,3.62141617,58552.0,58551.0,0.0009042]
[1723715343776,1.195537,58551.0,58550.0,1e-08]
[1723715343996,1.71605146,58551.0,58550.0,1e-08]
[1723715344332,1.887606,58551.0,58550.0,1e-08]
[1723715344616,2.04095792,58551.0,58550.0,1e-08]
[1723715345118,3.31945792,58551.0,58550.0,1e-08]
[1723715345321,3.33345792,58551.0,58550.0,1e-08]
[1723715345547,3.180106,58551.0,58550.0,1e-08]
[1723715345767,3.166106,58551.0,58550.0,1e-08]
[1723715345910,3.180106,58551.0,58550.0,1e-08]
[1723715346355,3.166106,58551.0,58550.0,1e-08]
[1723715346803,3.180106,58551.0,58550.0,1e-08]
[1723715347338,3.194106,58551.0,58550.0,1e-08]
[1723715347711,3.02255146,58551.0,58550.0,1e-08]
[1723715348146,2.68096946,58551.0,58550.0,1e-08]
[1723715348706,2.44412366,58551.0,58550.0,1e-08]
[1723715348908,2.31638746,58551.0,58550.0,1e-08]
[1723715349677,1.97480546,58551.0,58550.0,1e-08]
[1723715349925,2.14636,58551.0,58550.0,1e-08]
[1723715350125,2.16936,58551.0,58550.0,0.00810932]
[1723715350327,2.27154833,58551.0,58550.0,0.00810932]
[1723715350533,2.68065779,58551.0,58550.0,0.00810932]
[1723715350686,2.78284612,58551.0,58550.0,0.00810932]
[1723715350889,2.44126412,58551.0,58550.0,1e-08]
[1723715351111,0.71899379,58551.0,58550.0,1e-08]
[1723715351287,0.46998776,58551.0,58550.0,1e-08]
[1723715351478,0.95090211,58551.0,58550.0,1e-08]
[1723715351702,1.67015584,58551.0,58550.0,0.00810932]
[1723715351903,1.54241964,58551.0,58550.0,1e-08]
[1723715352299,1.67016278,58551.0,58550.0,1e-08]
[1723715353026,1.54241964,58551.0,58550.0,1e-08]
[1723715353257,1.67016721,58551.0,58550.0,1e-08]